lending/lending_fUSD_20250224
["ID","MTS","AMOUNT","RATE_DAILY","PERIOD"]
[354311994,1740406281505,-300.0,0.00039,120]
[354311995,1740406281515,-1191.0680125,0.00039,120]
[354311996,1740406281525,-1164.55718732,0.00039,120]
[354311997,1740406281535,-210.0,0.00039,2]
[354311998,1740406281544,-583.35235995,0.000394,30]
[354311999,1740406281554,-5388.29,0.000394,120]
[354312000,1740406281563,-5388.29,0.000394,120]
[354312001,1740406281572,-5388.29,0.000394,120]
[354312002,1740406281581,-849.41,0.00039517,2]
[354312003,1740406281591,-45000.0,0.0003958,120]
[354312004,1740406281600,-8681.66644438,0.000396,120]
[354312005,1740406281609,-180.0,0.00039726,120]
[354312006,1740406281617,-197.65555556,0.00039726,120]
[354312007,1740406281627,-5000.0,0.000398,30]
[354312008,1740406281635,-7891.28910979,0.000398,30]
[354312009,1740406281645,-430.07493745,0.000398,30]
[354312010,1740406281654,-5200.0,0.000398,120]
[354312011,1740406281665,-458.55279067,0.000398,30]
[354312012,1740406281674,-513.20324702,0.00039865,120]
[354312013,1740406281683,-50000.0,0.0003987,120]
[354312014,1740406281692,-1000.0,0.00039999,120]
[354312015,1740406281701,-400.0,0.0004,120]
[354312016,1740406281710,-21505.30384986,0.0004,120]
[354312017,1740406281719,-375.132757,0.0004,2]
[354312018,1740406281728,-210.24944219,0.0004,2]
[354312019,1740406281737,-16235.06412725,0.0004,120]
[354312020,1740406281746,-1000.0,0.0004,2]
[354312021,1740406281755,-5730.0,0.0004,120]
[354312022,1740406281765,-190.28883982,0.0004,120]
[354312023,1740406281884,-2452.67729412,0.0004,90]
[354312024,1740406281894,-12872.22657972,0.0004,120]
[354312025,1740406281903,-9487.54940109,0.0004,120]
[354312026,1740406281912,-199.65348382,0.0004,120]
[354312027,1740406281921,-401.85008261,0.0004,7]
[354312028,1740406281930,-930.63221548,0.0004,7]
[354312029,1740406281939,-5010.99138059,0.0004,7]
[354312030,1740406281948,-4633.94,0.0004,90]
[354312031,1740406281957,-17112.07968767,0.0004,10]
[354312032,1740406281967,-200.0,0.0004,120]
[354312033,1740406281976,-1184.36444075,0.0004,120]
[354312034,1740406281985,-139158.21737145,0.0004,14]
[354312035,1740406281994,-25010.51,0.0004,120]
[354312036,1740406282003,-952.88623198,0.0004,20]
[354312037,1740406282013,-25533.98773614,0.0004,14]
[354312038,1740406282023,-477.12749073,0.0004,30]
[354312039,1740406282032,-3723.23100502,0.0004,30]
[354312040,1740406282041,-194.4676183,0.0004,30]
[354312041,1740406282050,-11880.9277392,0.0004,30]
[354312042,1740406282088,-561.77957128,0.0004,30]
[354312043,1740406282099,-2699.828592,0.0004,30]
[354312044,1740406282110,-6634.0833742,0.0004,30]
[354312045,1740406282121,-13668.17379404,0.0004,30]
[354312046,1740406282130,-617.74834257,0.0004,120]
[354312047,1740406282141,-370.13638,0.0004,120]
[354312048,1740406282157,-500.0,0.0001652,2]
[354312049,1740406282166,-660.96280823,0.0004,120]
[354312050,1740406282177,-1668.02297108,0.0004,120]
[354312051,1740406282188,-993.12736041,0.0004,120]
[354312052,1740406282198,-820.93450376,0.0004,120]
[354312053,1740406282209,-937.97971815,0.0004,120]
[354312054,1740406282220,-725.63706648,0.0004,120]
[354312055,1740406282287,-500.0,0.00016438,2]
[354312056,1740406282296,-502.45610572,0.0001652,2]
[354312057,1740406282306,-500.0,0.00016602,2]
[354312058,1740406282315,-500.0,0.00016684,2]
[354312059,1740406282324,-500.0,0.00016767,2]
[354312060,1740406282333,-7995.00389428,0.0004,120]
[354312061,1740406282344,-1930.10992698,0.0004,120]
[354312062,1740406455868,180.0,0.0002,120]
[354312063,1740406495985,151.0,0.0002,120]
[354312064,1740407039110,232.86,8.767e-05,2]
[354312066,1740407162528,-300.0,9.999e-05,2]
[354312067,1740407162554,-1346014.3866,0.0001,2]
[354312068,1740407175642,5000.0,0.0002,120]
[354312069,1740407250862,150.0,0.00019916,120]
[354312070,1740407298336,180.0,0.0002,120]
[354312074,1740407324325,4070.29872914,0.0002,120]
[354312075,1740407339359,171.85555556,0.0002,120]
[354312081,1740407431650,-2207.50159971,9.9e-05,2]
[354312082,1740407431660,-300.0,9.998e-05,2]
[354312083,1740407431669,-15094.13409756,9.999e-05,2]
[354312084,1740407431678,-10137.25651279,9.999e-05,2]
[354312085,1740407431687,-150.0,9.999e-05,2]
[354312087,1740407431697,-505.65067466,9.999e-05,2]
[354312088,1740407431706,-500.0,9.999e-05,2]
[354312089,1740407431715,-299.52482567,9.999e-05,2]
[354312090,1740407431724,-500.0,9.999e-05,2]
[354312091,1740407431734,-500.0,9.999e-05,2]
[354312092,1740407431748,-500.0,9.999e-05,2]
[354312093,1740407431759,-500.0,9.999e-05,2]
[354312094,1740407431768,-500.0,9.999e-05,2]
[354312095,1740407431778,-164.98994692,9.999e-05,2]
[354312096,1740407431787,-500.0,9.999e-05,2]
[354312097,1740407431796,-500.0,9.999e-05,2]
[354312098,1740407431806,-500.0,9.999e-05,2]
[354312099,1740407431816,-428.0970991,9.999e-05,2]
[354312100,1740407431826,-500.0,9.999e-05,2]
[354312101,1740407431835,-462.90242866,9.999e-05,2]
[354312102,1740407431844,-488.78809907,9.999e-05,2]
[354312103,1740407431854,-500.0,9.999e-05,2]
[354312104,1740407431863,-500.0,9.999e-05,2]
[354312105,1740407431873,-500.0,9.999e-05,2]
[354312106,1740407431883,-500.0,9.999e-05,2]
[354312107,1740407431893,-500.0,9.999e-05,2]
[354312108,1740407431902,-500.0,9.999e-05,2]
[354312109,1740407431912,-500.0,9.999e-05,2]
[354312111,1740407431921,-286.78616022,9.999e-05,2]
[354312113,1740407431931,-500.0,9.999e-05,2]
[354312115,1740407431941,-500.0,9.999e-05,2]
[354312117,1740407431951,-500.0,9.999e-05,2]
[354312119,1740407431960,-3581477.39748252,0.0001,2]
[354312120,1740407431970,-198.09710934,0.0001,2]
[354312121,1740407431979,-72849.31980906,0.0001,2]
[354312122,1740407431989,-477.71701765,0.0001,2]
[354312123,1740407431998,-570.31317479,0.0001,2]
[354312124,1740407432007,-1116228.48354551,0.0001,2]
[354312125,1740407432023,-1564.16322837,0.0001,2]
[354312126,1740407432041,-768.8155052,0.0001,2]
[354312128,1740407432090,-279.45855722,0.0001,2]
[354312129,1740407432101,-1337.5,0.0001,2]
[354312130,1740407432112,-350.08956869,0.0001,2]
[354312649,1740407437623,-1278.0217372,0.0001,2]
[354312650,1740407437777,-2209876.55180897,0.0001,2]
[354312651,1740407437787,-192.92447968,0.0001,2]
[354312652,1740407437797,-315.70022424,0.0001,2]
[354312653,1740407437807,-166.0817616,0.0001,2]
[354312654,1740407437817,-166.0817616,0.0001,2]
[354312655,1740407437827,-215.15029569,0.000108,2]
[354312656,1740407437842,-255.0,0.00010999,2]
[354312657,1740407437851,-1983.62161934,0.00011,2]
[354312658,1740407437860,-500.0,0.00011,2]
[354312660,1740407437870,-2992.29093637,0.00011099,2]
[354312662,1740407437879,-2992.29093637,0.00011099,2]
[354312664,1740407437888,-2992.29093637,0.00011264,2]
[354312666,1740407437897,-208.43242019,0.000115,2]
[354312668,1740407437907,-2992.29093637,0.00011946,2]
[354312671,1740407437918,-294.94598608,0.000125,2]
[354312672,1740407437927,-269.21555428,0.000125,3]
[354312675,1740407437937,-2992.29093637,0.00012628,2]
[354312676,1740407437947,-2992.29093637,0.0001331,2]
[354312678,1740407437956,-208.43242019,0.00013686,2]
[354312680,1740407437966,-200.25224889,0.00013698,2]
[354312682,1740407437976,-175.64,0.00013798,2]
[354312684,1740407437985,-2992.29093637,0.00013992,2]
[354312686,1740407437995,-348.75,0.00014082,2]
[354312688,1740407438005,-2992.29093637,0.00014674,2]
[354312690,1740407438016,-37414.33224744,0.000149,2]
[354312692,1740407438025,-142827.020519,0.000149,3]
[354312694,1740407438035,-500.0,0.00015178,2]
[354312696,1740407438045,-2992.29093637,0.00015356,2]
[354312698,1740407438055,-232.86,0.00015516,2]
[354312700,1740407438065,-250.0,0.0001554,2]
[354312702,1740407438075,-1000.0,0.0001564,2]
[354312704,1740407438084,-2500.0,0.00015649,2]
[354312706,1740407438094,-2500.0,0.00015649,2]
[354312708,1740407438104,-23900.0,0.00015749,2]
[354312711,1740407438115,-179.85,0.00015772,2]
[354312712,1740407438124,-300.0,0.00015999,2]
[354312715,1740407438134,-3205039.09435242,0.00016,4]
[354312717,1740407438144,-2992.29093637,0.00016038,2]
[354312719,1740407438154,-5756.2773,0.00016238,2]
[354312721,1740407438163,-3883.9352,0.00016238,2]
[354312723,1740407438172,-419.75879209,0.00016337,2]
[354312725,1740407438181,-1288.8953,0.00016338,2]
[354312727,1740407438190,-1223.0343,0.00016338,2]
[354312729,1740407438200,-26558.7819,0.00016338,2]
[354312731,1740407438209,-1237.0501,0.00016338,2]
[354312733,1740407438218,-687.2701,0.00016338,2]
[354312735,1740407438227,-1722.3256,0.00016338,2]
[354312737,1740407438236,-1000.0,0.00016338,2]
[354312739,1740407438246,-6543.6877,0.00016338,2]
[354312741,1740407438255,-348.75,0.00016346,2]
[354312743,1740407438267,-150.0,0.00016379,2]
[354312745,1740407438276,-55555.0,0.00016419,2]
[354312747,1740407438285,-428.41,0.00016421,2]
[354312749,1740407438295,-500.0,0.00016438,2]
[354312751,1740407438304,-481.94952308,0.00016438,2]
[354312753,1740407438313,-500.0,0.00016438,2]
[354312755,1740407438322,-500.0,0.00016438,2]
[354312757,1740407438331,-500.0,0.00016438,2]
[354312759,1740407438340,-500.0,0.00016438,2]
[354312761,1740407438350,-500.0,0.00016438,2]
[354312763,1740407438359,-500.0,0.00016438,2]
[354312765,1740407438368,-500.0,0.00016438,2]
[354312767,1740407438377,-500.0,0.00016438,2]
[354312768,1740407438386,-500.0,0.00016438,2]
[354312771,1740407438396,-500.0,0.00016438,2]
[354312772,1740407438405,-193.78267535,0.00016438,2]
[354312774,1740407438414,-348.04111431,0.00016438,2]
[354312776,1740407438423,-500.0,0.00016438,2]
[354312778,1740407438433,-513.22353374,0.00016438,2]
[354312780,1740407438442,-503.36174568,0.00016438,2]
[354312782,1740407438451,-500.0,0.00016438,2]
[354312784,1740407438460,-500.0,0.00016438,2]
[354312785,1740407438469,-500.0,0.00016438,2]
[354312786,1740407438478,-500.0,0.00016438,2]
[354312787,1740407438487,-500.0,0.00016438,2]
[354312788,1740407438495,-500.0,0.00016438,2]
[354312789,1740407438504,-486.8936887,0.00016438,2]
[354312790,1740407438515,-500.0,0.00016438,2]
[354312791,1740407438524,-500.0,0.00016438,2]
[354312792,1740407438533,-500.0,0.00016438,2]
[354312793,1740407438542,-500.0,0.00016438,2]
[354312794,1740407438551,-500.0,0.00016438,2]
[354312795,1740407438560,-500.0,0.00016438,2]
[354312796,1740407438568,-500.0,0.00016438,2]
[354312797,1740407438577,-500.0,0.00016438,2]
[354312799,1740407438587,-500.0,0.00016438,2]
[354312801,1740407438596,-500.0,0.00016438,2]
[354312803,1740407438605,-500.0,0.00016438,2]
[354312805,1740407438614,-508.33930523,0.00016438,2]
[354312807,1740407438623,-500.0,0.00016438,2]
[354312809,1740407438632,-500.0,0.00016438,2]
[354312811,1740407438642,-500.0,0.00016438,2]
[354312813,1740407438651,-500.0,0.00016438,2]
[354312815,1740407438659,-500.0,0.00016438,2]
[354312817,1740407438669,-500.0,0.00016438,2]
[354312819,1740407438678,-500.0,0.00016438,2]
[354312821,1740407438687,-500.0,0.00016438,2]
[354312823,1740407438696,-500.0,0.00016438,2]
[354312825,1740407438705,-500.0,0.00016438,2]
[354312827,1740407438714,-500.0,0.00016438,2]
[354312829,1740407438723,-500.0,0.00016438,2]
[354312831,1740407438732,-500.0,0.00016438,2]
[354312833,1740407438743,-500.0,0.00016438,2]
[354312835,1740407438753,-500.0,0.00016438,2]
[354312837,1740407438762,-500.0,0.00016438,2]
[354312838,1740407438771,-500.0,0.00016438,2]
[354312840,1740407438781,-500.0,0.00016438,2]
[354312842,1740407438790,-500.0,0.00016438,2]
[354312844,1740407438799,-500.0,0.00016438,2]
[354312846,1740407438808,-500.0,0.00016438,2]
[354312848,1740407438817,-500.0,0.00016438,2]
[354312850,1740407438827,-500.0,0.00016438,2]
[354312852,1740407438838,-500.0,0.00016438,2]
[354312854,1740407438847,-500.0,0.00016438,2]
[354312856,1740407438856,-500.0,0.00016438,2]
[354312858,1740407438865,-500.0,0.00016438,2]
[354312860,1740407438875,-500.0,0.00016438,2]
[354312862,1740407438885,-500.0,0.00016438,2]
[354312864,1740407438894,-500.0,0.00016438,2]
[354312866,1740407438904,-500.0,0.00016438,2]
[354312868,1740407438913,-500.0,0.00016438,2]
[354312870,1740407438923,-500.0,0.00016438,2]
[354312873,1740407438933,-500.0,0.00016438,2]
[354312875,1740407438942,-510.6567395,0.00016438,2]
[354312876,1740407438951,-500.0,0.00016438,2]
[354312878,1740407438960,-181.0409647,0.00016438,2]
[354312880,1740407438970,-500.0,0.00016438,2]
[354312883,1740407438980,-500.0,0.00016438,2]
[354312884,1740407438990,-500.0,0.00016438,2]
[354312886,1740407438999,-500.0,0.00016438,2]
[354312888,1740407439009,-500.0,0.00016438,2]
[354312890,1740407439018,-500.0,0.00016438,2]
[354312892,1740407439027,-578.28,0.00016438,2]
[354312894,1740407439037,-500.0,0.00016438,2]
[354312896,1740407439046,-500.0,0.00016438,2]
[354312898,1740407439056,-500.0,0.00016438,2]
[354312900,1740407439065,-500.0,0.00016438,2]
[354312902,1740407439074,-500.0,0.00016438,2]
[354312905,1740407439084,-500.0,0.00016438,2]
[354312906,1740407439093,-500.0,0.00016438,2]
[354312908,1740407439103,-500.0,0.00016438,2]
[354312911,1740407439113,-500.0,0.00016438,2]
[354312912,1740407439122,-500.0,0.00016438,2]
[354312914,1740407439132,-500.0,0.00016438,2]
[354312917,1740407439142,-500.0,0.00016438,2]
[354312918,1740407439152,-500.0,0.00016438,2]
[354312920,1740407439162,-500.0,0.00016438,2]
[354312922,1740407439172,-500.0,0.00016438,2]
[354312924,1740407439181,-500.0,0.00016438,2]
[354312926,1740407439191,-500.0,0.00016438,2]
[354312928,1740407439200,-500.0,0.00016438,2]
[354312930,1740407439210,-500.0,0.00016438,2]
[354312932,1740407439219,-500.0,0.00016438,2]
[354312934,1740407439228,-500.0,0.00016438,2]
[354312936,1740407439238,-500.0,0.00016438,2]
[354312953,1740407439379,-500.0,0.00016438,2]
[354312955,1740407439389,-500.0,0.00016438,2]
[354312957,1740407439398,-500.0,0.00016438,2]
[354312959,1740407439407,-500.0,0.00016438,2]
[354312961,1740407439416,-500.0,0.00016438,2]
[354312963,1740407439426,-500.0,0.00016438,2]
[354312965,1740407439435,-166.229446,0.00016438,2]
[354312967,1740407439444,-505.77622659,0.00016438,2]
[354312969,1740407439454,-500.0,0.00016438,2]
[354312971,1740407439463,-616.58073283,0.00016438,2]
[354312973,1740407439472,-156.011395,0.00016438,2]
[354312975,1740407439481,-500.0,0.00016438,2]
[354312977,1740407439490,-500.0,0.00016438,2]
[354312979,1740407439499,-500.0,0.00016438,2]
[354312981,1740407439508,-500.0,0.00016438,2]
[354312983,1740407439521,-500.0,0.00016438,2]
[354312985,1740407439533,-500.0,0.00016438,2]
[354312987,1740407439542,-500.0,0.00016438,2]
[354312989,1740407439551,-505.47358965,0.00016438,2]
[354312991,1740407439564,-500.0,0.00016438,2]
[354312994,1740407439573,-500.0,0.00016438,2]
[354312997,1740407439582,-500.0,0.00016438,2]
[354312999,1740407439591,-1679.924662,0.00016438,2]
[354313001,1740407439600,-500.0,0.00016438,2]
[354313003,1740407439609,-500.0,0.00016438,2]
[354313005,1740407439618,-150.0,0.00016438,2]
[354313007,1740407439628,-208.43242019,0.00016471,2]
[354313009,1740407439637,-60000.0,0.000165,3]
[354313011,1740407439646,-500.0,0.00016518,2]
[354313013,1740407439655,-500.0,0.00016518,2]
[354313015,1740407439664,-500.0,0.00016518,2]
[354313017,1740407439673,-500.0,0.00016518,2]
[354313019,1740407439682,-535.98696734,0.00016518,2]
[354313021,1740407439691,-517.48663208,0.00016518,2]
[354313023,1740407439700,-500.0,0.00016518,2]
[354313025,1740407439709,-500.0,0.00016518,2]
[354313027,1740407439717,-500.0,0.00016518,2]
[354313029,1740407439726,-500.0,0.00016518,2]
[354313031,1740407439735,-500.0,0.00016518,2]
[354313033,1740407439747,-500.0,0.00016518,2]
[354313035,1740407439756,-500.0,0.00016518,2]
[354313037,1740407439765,-500.0,0.00016518,2]
[354313039,1740407439774,-500.0,0.00016518,2]
[354313041,1740407439784,-500.0,0.00016518,2]
[354313043,1740407439793,-501.8129585,0.00016518,2]
[354313045,1740407439802,-500.0,0.00016518,2]
[354313047,1740407439811,-500.0,0.00016518,2]
[354313049,1740407439821,-500.0,0.00016518,2]
[354313051,1740407439830,-509.44017248,0.00016518,2]
[354313053,1740407439839,-500.0,0.00016518,2]
[354313055,1740407439848,-500.0,0.00016518,2]
[354313057,1740407439857,-500.0,0.00016518,2]
[354313059,1740407439866,-186.08334591,0.00016518,2]
[354313061,1740407439875,-500.0,0.00016518,2]
[354313063,1740407439884,-500.0,0.00016518,2]
[354313064,1740407439893,-500.0,0.00016518,2]
[354313066,1740407439902,-500.0,0.00016518,2]
[354313068,1740407439912,-500.0,0.00016518,2]
[354313070,1740407439921,-500.0,0.00016518,2]
[354313071,1740407439930,-500.0,0.00016518,2]
[354313073,1740407439939,-500.0,0.00016518,2]
[354313075,1740407439948,-500.0,0.00016518,2]
[354313077,1740407439957,-500.0,0.00016518,2]
[354313079,1740407439967,-500.0,0.00016518,2]
[354313081,1740407439976,-500.0,0.00016518,2]
[354313082,1740407439985,-500.0,0.00016518,2]
[354313084,1740407439995,-500.0,0.00016518,2]
[354313086,1740407440004,-500.0,0.00016518,2]
[354313088,1740407440014,-500.0,0.00016518,2]
[354313089,1740407440023,-500.0,0.00016518,2]
[354313091,1740407440032,-500.0,0.00016518,2]
[354313093,1740407440042,-500.0,0.00016518,2]
[354313095,1740407440051,-500.0,0.00016518,2]
[354313097,1740407440060,-500.0,0.00016518,2]
[354313098,1740407440070,-500.0,0.00016518,2]
[354313100,1740407440079,-500.0,0.00016518,2]
[354313102,1740407440088,-500.0,0.00016518,2]
[354313104,1740407440098,-500.0,0.00016518,2]
[354313106,1740407440107,-500.0,0.00016518,2]
[354313107,1740407440116,-500.0,0.00016518,2]
[354313109,1740407440126,-500.0,0.00016518,2]
[354313111,1740407440135,-500.0,0.00016518,2]
[354313113,1740407440145,-500.0,0.00016518,2]
[354313115,1740407440155,-500.0,0.00016518,2]
[354313116,1740407440164,-500.0,0.00016518,2]
[354313118,1740407440173,-500.0,0.00016518,2]
[354313120,1740407440183,-500.0,0.00016518,2]
[354313122,1740407440192,-500.0,0.00016518,2]
[354313124,1740407440201,-500.0,0.00016518,2]
[354313126,1740407440211,-500.0,0.00016518,2]
[354313127,1740407440220,-500.0,0.00016518,2]
[354313129,1740407440229,-500.0,0.00016518,2]
[354313131,1740407440239,-500.0,0.00016518,2]
[354313133,1740407440249,-500.0,0.00016518,2]
[354313135,1740407440258,-500.0,0.00016518,2]
[354313137,1740407440268,-500.0,0.00016518,2]
[354313138,1740407440277,-500.0,0.00016518,2]
[354313140,1740407440286,-500.0,0.00016518,2]
[354313142,1740407440295,-500.0,0.00016518,2]
[354313144,1740407440304,-500.0,0.00016518,2]
[354313145,1740407440314,-472.71276252,0.00016518,2]
[354313147,1740407440323,-500.0,0.00016518,2]
[354313149,1740407440331,-527.09810434,0.00016518,2]
[354313151,1740407440341,-500.0,0.00016518,2]
[354313152,1740407440350,-500.0,0.00016518,2]
[354313154,1740407440358,-500.0,0.00016518,2]
[354313156,1740407440368,-500.0,0.00016518,2]
[354313158,1740407440377,-500.0,0.00016518,2]
[354313160,1740407440386,-500.0,0.00016518,2]
[354313162,1740407440395,-500.0,0.00016518,2]
[354313163,1740407440404,-500.0,0.00016518,2]
[354313165,1740407440414,-500.0,0.00016518,2]
[354313167,1740407440424,-500.0,0.00016518,2]
[354313169,1740407440433,-500.0,0.00016518,2]
[354313170,1740407440442,-500.0,0.00016518,2]
[354313172,1740407440451,-500.0,0.00016518,2]
[354313174,1740407440460,-537.33840935,0.00016518,2]
[354313176,1740407440469,-484.63764867,0.00016518,2]
[354313178,1740407440478,-500.0,0.00016518,2]
[354313180,1740407440487,-500.0,0.00016518,2]
[354313181,1740407440496,-466.69806,0.00016518,2]
[354313183,1740407440505,-500.0,0.00016518,2]
[354313185,1740407440514,-500.0,0.00016518,2]
[354313187,1740407440523,-500.0,0.00016518,2]
[354313189,1740407440532,-500.0,0.00016518,2]
[354313191,1740407440541,-500.0,0.00016518,2]
[354313193,1740407440550,-500.0,0.00016518,2]
[354313194,1740407440559,-500.0,0.00016518,2]
[354313196,1740407440568,-500.0,0.00016518,2]
[354313198,1740407440578,-500.0,0.00016518,2]
[354313200,1740407440587,-500.0,0.00016518,2]
[354313202,1740407440597,-500.0,0.00016518,2]
[354313204,1740407440606,-500.0,0.00016518,2]
[354313206,1740407440615,-500.0,0.00016518,2]
[354313208,1740407440624,-500.0,0.00016518,2]
[354313209,1740407440633,-500.0,0.00016518,2]
[354313211,1740407440643,-1546.361305,0.00016518,2]
[354313213,1740407440652,-500.0,0.00016518,2]
[354313215,1740407440662,-500.0,0.00016518,2]
[354313217,1740407440671,-500.0,0.00016518,2]
[354313219,1740407440681,-500.0,0.00016518,2]
[354313221,1740407440690,-500.0,0.00016518,2]
[354313222,1740407440700,-500.0,0.00016518,2]
[354313224,1740407440710,-500.0,0.00016518,2]
[354313226,1740407440719,-500.0,0.00016518,2]
[354313228,1740407440728,-500.0,0.00016518,2]
[354313230,1740407440740,-500.0,0.00016518,2]
[354313232,1740407440752,-500.0,0.00016518,2]
[354313233,1740407440762,-500.0,0.00016518,2]
[354313235,1740407440772,-500.0,0.00016518,2]
[354313237,1740407440782,-500.0,0.00016518,2]
[354313239,1740407440792,-517.56097082,0.00016518,2]
[354313241,1740407440802,-500.0,0.00016518,2]
[354313243,1740407440811,-500.0,0.00016518,2]
[354313245,1740407440822,-500.0,0.00016518,2]
[354313247,1740407440832,-500.0,0.00016518,2]
[354313249,1740407440842,-500.0,0.00016518,2]
[354313250,1740407440852,-1397.314833,0.00016518,2]
[354313252,1740407440861,-500.0,0.00016518,2]
[354313254,1740407440871,-500.0,0.00016518,2]
[354313256,1740407440881,-500.0,0.00016518,2]
[354313258,1740407440891,-500.0,0.00016518,2]
[354313260,1740407440900,-500.0,0.00016518,2]
[354313261,1740407440910,-500.0,0.00016518,2]
[354313263,1740407440920,-500.0,0.00016518,2]
[354313265,1740407440929,-500.0,0.00016518,2]
[354313267,1740407440938,-500.0,0.00016518,2]
[354313269,1740407440947,-500.0,0.00016518,2]
[354313271,1740407440957,-500.0,0.00016518,2]
[354313272,1740407440967,-500.0,0.00016518,2]
[354313274,1740407440977,-500.0,0.00016518,2]
[354313276,1740407440986,-500.0,0.00016518,2]
[354313278,1740407440999,-500.0,0.00016518,2]
[354313280,1740407441010,-500.0,0.00016518,2]
[354313282,1740407441022,-500.0,0.00016518,2]
[354313284,1740407441034,-500.0,0.00016518,2]
[354313287,1740407441045,-500.0,0.00016518,2]
[354313288,1740407441056,-500.0,0.00016518,2]
[354313291,1740407441067,-500.0,0.00016518,2]
[354313292,1740407441078,-616.43505438,0.00016518,2]
[354313294,1740407441088,-500.0,0.00016518,2]
[354313296,1740407441098,-315.798692,0.00016518,2]
[354313298,1740407441109,-500.0,0.00016518,2]
[354313300,1740407441120,-500.0,0.00016518,2]
[354313302,1740407441131,-500.0,0.00016518,2]
[354313304,1740407441142,-500.0,0.00016518,2]
[354313306,1740407441153,-500.0,0.00016518,2]
[354313308,1740407441163,-500.0,0.00016518,2]
[354313310,1740407441174,-500.0,0.00016518,2]
[354313312,1740407441185,-500.0,0.00016518,2]
[354313314,1740407441196,-500.0,0.00016518,2]
[354313316,1740407441206,-500.0,0.00016518,2]
[354313318,1740407441217,-500.0,0.00016518,2]
[354313321,1740407441228,-500.0,0.00016518,2]
[354313323,1740407441239,-500.0,0.00016518,2]
[354313325,1740407441249,-500.0,0.00016519,2]
[354313327,1740407441259,-500.0,0.00016519,2]
[354313329,1740407441270,-500.0,0.00016519,2]
[354313331,1740407441280,-500.0,0.00016519,2]
[354313333,1740407441290,-513.98102077,0.00016519,2]
[354313335,1740407441299,-500.0,0.00016519,2]
[354313337,1740407441310,-500.0,0.00016519,2]
[354313340,1740407441321,-500.0,0.00016519,2]
[354313342,1740407441332,-353.50933636,0.00016519,2]
[354313344,1740407441342,-200.33776025,0.00016519,2]
[354313346,1740407441353,-500.0,0.00016519,2]
[354313348,1740407441364,-500.0,0.00016519,2]
[354313350,1740407441375,-500.0,0.00016519,2]
[354313352,1740407441386,-500.0,0.00016519,2]
[354313353,1740407441396,-500.0,0.00016519,2]
[354313354,1740407441406,-275.43681776,0.00016519,2]
[354313355,1740407441417,-500.0,0.00016519,2]
[354313356,1740407441427,-500.0,0.00016519,2]
[354313357,1740407441438,-500.0,0.00016519,2]
[354313358,1740407441448,-500.0,0.00016519,2]
[354313359,1740407441459,-500.0,0.00016519,2]
[354313360,1740407441470,-500.0,0.00016519,2]
[354313361,1740407441479,-509.28991727,0.00016519,2]
[354313362,1740407441489,-500.0,0.00016519,2]
[354313363,1740407441501,-500.0,0.00016519,2]
[354313364,1740407441511,-500.0,0.00016519,2]
[354313365,1740407441530,-500.0,0.00016519,2]
[354313366,1740407441542,-498.26167291,0.00016519,2]